{"text_format":"1","workbook":"xlsx","n_sheets":4,"sheets":["クラス集計1回目","クラス集計2回目","個票","Sheet3"],"not_rendered":{"charts":6,"images":0,"macros":1,"external_links":0,"defined_names":1,"comments":0,"pivot_tables":0},"unopened":[],"bounds":{"document_bytes":16777216,"sheet_cells":100000,"rows_first":2000,"rows_last":500,"rows_between":2000,"halvings":0,"cell_chars":16384,"cell_head_chars":4096},"cells_cut":0,"cells_raw":0,"read":"whole","date_system":"1900"}

{"sheet":"クラス集計1回目","index":0,"n_rows":64,"n_cols":30,"rows_kept":64,"cut":false,"hidden":false,"merged":[[1,25,1,29],[1,23,2,23],[48,0,48,2],[1,3,1,22],[1,0,2,0],[1,1,2,1],[1,2,2,2]]}
["【学校名：",null,null,"学校】",null,null,"【クラス名：",null,null,null,"】",null,null,null,"【担任名：",null,null,null,null,null,"】"]
["出席\n番号","名前","性別","問　　　題　　　番　　　号　【解　　答　　欄】",null,null,null,null,null,null,null,null,null,null,null,null,null,null,null,null,null,null,null,"合計",null,"個人　領域ごとの正当数"]
[null,null,null,1,2,3,4,5,6,7,8,9,10,11,12,13,14,15,16,17,18,19,20,null,null,"情報モラル","参画する態度","情報技術","法律","機器の利用"]
[1,null,null,null,null,null,null,null,null,null,null,null,null,null,null,null,null,null,null,null,null,null,null,{"$f":"SUM(D4:W4)","v":0},null,{"$f":"SUM(クラス集計1回目!T4,クラス集計1回目!U4,クラス集計1回目!V4,クラス集計1回目!W4)","v":0},{"$f":"SUM(クラス集計1回目!P4,クラス集計1回目!Q4,クラス集計1回目!R4,クラス集計1回目!S4)","v":0},{"$f":"SUM(クラス集計1回目!L4,クラス集計1回目!M4,クラス集計1回目!N4,クラス集計1回目!O4)","v":0},{"$f":"SUM(クラス集計1回目!H4,クラス集計1回目!I4,クラス集計1回目!J4,クラス集計1回目!K4)","v":0},{"$f":"SUM(クラス集計1回目!D4,クラス集計1回目!E4,クラス集計1回目!F4,クラス集計1回目!G4)","v":0}]
[2,null,null,null,null,null,null,null,null,null,null,null,null,null,null,null,null,null,null,null,null,null,null,{"$f":"SUM(D5:W5)","v":0},null,{"$f":"SUM(クラス集計1回目!T5,クラス集計1回目!U5,クラス集計1回目!V5,クラス集計1回目!W5)","v":0},{"$f":"SUM(クラス集計1回目!P5,クラス集計1回目!Q5,クラス集計1回目!R5,クラス集計1回目!S5)","v":0},{"$f":"SUM(クラス集計1回目!L5,クラス集計1回目!M5,クラス集計1回目!N5,クラス集計1回目!O5)","v":0},{"$f":"SUM(クラス集計1回目!H5,クラス集計1回目!I5,クラス集計1回目!J5,クラス集計1回目!K5)","v":0},{"$f":"SUM(クラス集計1回目!D5,クラス集計1回目!E5,クラス集計1回目!F5,クラス集計1回目!G5)","v":0}]
[3,null,null,null,null,null,null,null,null,null,null,null,null,null,null,null,null,null,null,null,null,null,null,0,null,{"$f":"SUM(クラス集計1回目!T6,クラス集計1回目!U6,クラス集計1回目!V6,クラス集計1回目!W6)","v":0},{"$f":"SUM(クラス集計1回目!P6,クラス集計1回目!Q6,クラス集計1回目!R6,クラス集計1回目!S6)","v":0},{"$f":"SUM(クラス集計1回目!L6,クラス集計1回目!M6,クラス集計1回目!N6,クラス集計1回目!O6)","v":0},{"$f":"SUM(クラス集計1回目!H6,クラス集計1回目!I6,クラス集計1回目!J6,クラス集計1回目!K6)","v":0},{"$f":"SUM(クラス集計1回目!D6,クラス集計1回目!E6,クラス集計1回目!F6,クラス集計1回目!G6)","v":0}]
[4,null,null,null,null,null,null,null,null,null,null,null,null,null,null,null,null,null,null,null,null,null,null,0,null,{"$f":"SUM(クラス集計1回目!T7,クラス集計1回目!U7,クラス集計1回目!V7,クラス集計1回目!W7)","v":0},{"$f":"SUM(クラス集計1回目!P7,クラス集計1回目!Q7,クラス集計1回目!R7,クラス集計1回目!S7)","v":0},{"$f":"SUM(クラス集計1回目!L7,クラス集計1回目!M7,クラス集計1回目!N7,クラス集計1回目!O7)","v":0},{"$f":"SUM(クラス集計1回目!H7,クラス集計1回目!I7,クラス集計1回目!J7,クラス集計1回目!K7)","v":0},{"$f":"SUM(クラス集計1回目!D7,クラス集計1回目!E7,クラス集計1回目!F7,クラス集計1回目!G7)","v":0}]
[5,null,null,null,null,null,null,null,null,null,null,null,null,null,null,null,null,null,null,null,null,null,null,0,null,{"$f":"SUM(クラス集計1回目!T8,クラス集計1回目!U8,クラス集計1回目!V8,クラス集計1回目!W8)","v":0},{"$f":"SUM(クラス集計1回目!P8,クラス集計1回目!Q8,クラス集計1回目!R8,クラス集計1回目!S8)","v":0},{"$f":"SUM(クラス集計1回目!L8,クラス集計1回目!M8,クラス集計1回目!N8,クラス集計1回目!O8)","v":0},{"$f":"SUM(クラス集計1回目!H8,クラス集計1回目!I8,クラス集計1回目!J8,クラス集計1回目!K8)","v":0},{"$f":"SUM(クラス集計1回目!D8,クラス集計1回目!E8,クラス集計1回目!F8,クラス集計1回目!G8)","v":0}]
[6,null,null,null,null,null,null,null,null,null,null,null,null,null,null,null,null,null,null,null,null,null,null,0,null,{"$f":"SUM(クラス集計1回目!T9,クラス集計1回目!U9,クラス集計1回目!V9,クラス集計1回目!W9)","v":0},{"$f":"SUM(クラス集計1回目!P9,クラス集計1回目!Q9,クラス集計1回目!R9,クラス集計1回目!S9)","v":0},{"$f":"SUM(クラス集計1回目!L9,クラス集計1回目!M9,クラス集計1回目!N9,クラス集計1回目!O9)","v":0},{"$f":"SUM(クラス集計1回目!H9,クラス集計1回目!I9,クラス集計1回目!J9,クラス集計1回目!K9)","v":0},{"$f":"SUM(クラス集計1回目!D9,クラス集計1回目!E9,クラス集計1回目!F9,クラス集計1回目!G9)","v":0}]
[7,null,null,null,null,null,null,null,null,null,null,null,null,null,null,null,null,null,null,null,null,null,null,0,null,{"$f":"SUM(クラス集計1回目!T10,クラス集計1回目!U10,クラス集計1回目!V10,クラス集計1回目!W10)","v":0},{"$f":"SUM(クラス集計1回目!P10,クラス集計1回目!Q10,クラス集計1回目!R10,クラス集計1回目!S10)","v":0},{"$f":"SUM(クラス集計1回目!L10,クラス集計1回目!M10,クラス集計1回目!N10,クラス集計1回目!O10)","v":0},{"$f":"SUM(クラス集計1回目!H10,クラス集計1回目!I10,クラス集計1回目!J10,クラス集計1回目!K10)","v":0},{"$f":"SUM(クラス集計1回目!D10,クラス集計1回目!E10,クラス集計1回目!F10,クラス集計1回目!G10)","v":0}]
[8,null,null,null,null,null,null,null,null,null,null,null,null,null,null,null,null,null,null,null,null,null,null,0,null,{"$f":"SUM(クラス集計1回目!T11,クラス集計1回目!U11,クラス集計1回目!V11,クラス集計1回目!W11)","v":0},{"$f":"SUM(クラス集計1回目!P11,クラス集計1回目!Q11,クラス集計1回目!R11,クラス集計1回目!S11)","v":0},{"$f":"SUM(クラス集計1回目!L11,クラス集計1回目!M11,クラス集計1回目!N11,クラス集計1回目!O11)","v":0},{"$f":"SUM(クラス集計1回目!H11,クラス集計1回目!I11,クラス集計1回目!J11,クラス集計1回目!K11)","v":0},{"$f":"SUM(クラス集計1回目!D11,クラス集計1回目!E11,クラス集計1回目!F11,クラス集計1回目!G11)","v":0}]
[9,null,null,null,null,null,null,null,null,null,null,null,null,null,null,null,null,null,null,null,null,null,null,0,null,{"$f":"SUM(クラス集計1回目!T12,クラス集計1回目!U12,クラス集計1回目!V12,クラス集計1回目!W12)","v":0},{"$f":"SUM(クラス集計1回目!P12,クラス集計1回目!Q12,クラス集計1回目!R12,クラス集計1回目!S12)","v":0},{"$f":"SUM(クラス集計1回目!L12,クラス集計1回目!M12,クラス集計1回目!N12,クラス集計1回目!O12)","v":0},{"$f":"SUM(クラス集計1回目!H12,クラス集計1回目!I12,クラス集計1回目!J12,クラス集計1回目!K12)","v":0},{"$f":"SUM(クラス集計1回目!D12,クラス集計1回目!E12,クラス集計1回目!F12,クラス集計1回目!G12)","v":0}]
[10,null,null,null,null,null,null,null,null,null,null,null,null,null,null,null,null,null,null,null,null,null,null,0,null,{"$f":"SUM(クラス集計1回目!T13,クラス集計1回目!U13,クラス集計1回目!V13,クラス集計1回目!W13)","v":0},{"$f":"SUM(クラス集計1回目!P13,クラス集計1回目!Q13,クラス集計1回目!R13,クラス集計1回目!S13)","v":0},{"$f":"SUM(クラス集計1回目!L13,クラス集計1回目!M13,クラス集計1回目!N13,クラス集計1回目!O13)","v":0},{"$f":"SUM(クラス集計1回目!H13,クラス集計1回目!I13,クラス集計1回目!J13,クラス集計1回目!K13)","v":0},{"$f":"SUM(クラス集計1回目!D13,クラス集計1回目!E13,クラス集計1回目!F13,クラス集計1回目!G13)","v":0}]
[11,null,null,null,null,null,null,null,null,null,null,null,null,null,null,null,null,null,null,null,null,null,null,0,null,{"$f":"SUM(クラス集計1回目!T14,クラス集計1回目!U14,クラス集計1回目!V14,クラス集計1回目!W14)","v":0},{"$f":"SUM(クラス集計1回目!P14,クラス集計1回目!Q14,クラス集計1回目!R14,クラス集計1回目!S14)","v":0},{"$f":"SUM(クラス集計1回目!L14,クラス集計1回目!M14,クラス集計1回目!N14,クラス集計1回目!O14)","v":0},{"$f":"SUM(クラス集計1回目!H14,クラス集計1回目!I14,クラス集計1回目!J14,クラス集計1回目!K14)","v":0},{"$f":"SUM(クラス集計1回目!D14,クラス集計1回目!E14,クラス集計1回目!F14,クラス集計1回目!G14)","v":0}]
[12,null,null,null,null,null,null,null,null,null,null,null,null,null,null,null,null,null,null,null,null,null,null,0,null,{"$f":"SUM(クラス集計1回目!T15,クラス集計1回目!U15,クラス集計1回目!V15,クラス集計1回目!W15)","v":0},{"$f":"SUM(クラス集計1回目!P15,クラス集計1回目!Q15,クラス集計1回目!R15,クラス集計1回目!S15)","v":0},{"$f":"SUM(クラス集計1回目!L15,クラス集計1回目!M15,クラス集計1回目!N15,クラス集計1回目!O15)","v":0},{"$f":"SUM(クラス集計1回目!H15,クラス集計1回目!I15,クラス集計1回目!J15,クラス集計1回目!K15)","v":0},{"$f":"SUM(クラス集計1回目!D15,クラス集計1回目!E15,クラス集計1回目!F15,クラス集計1回目!G15)","v":0}]
[13,null,null,null,null,null,null,null,null,null,null,null,null,null,null,null,null,null,null,null,null,null,null,0,null,{"$f":"SUM(クラス集計1回目!T16,クラス集計1回目!U16,クラス集計1回目!V16,クラス集計1回目!W16)","v":0},{"$f":"SUM(クラス集計1回目!P16,クラス集計1回目!Q16,クラス集計1回目!R16,クラス集計1回目!S16)","v":0},{"$f":"SUM(クラス集計1回目!L16,クラス集計1回目!M16,クラス集計1回目!N16,クラス集計1回目!O16)","v":0},{"$f":"SUM(クラス集計1回目!H16,クラス集計1回目!I16,クラス集計1回目!J16,クラス集計1回目!K16)","v":0},{"$f":"SUM(クラス集計1回目!D16,クラス集計1回目!E16,クラス集計1回目!F16,クラス集計1回目!G16)","v":0}]
[14,null,null,null,null,null,null,null,null,null,null,null,null,null,null,null,null,null,null,null,null,null,null,0,null,{"$f":"SUM(クラス集計1回目!T17,クラス集計1回目!U17,クラス集計1回目!V17,クラス集計1回目!W17)","v":0},{"$f":"SUM(クラス集計1回目!P17,クラス集計1回目!Q17,クラス集計1回目!R17,クラス集計1回目!S17)","v":0},{"$f":"SUM(クラス集計1回目!L17,クラス集計1回目!M17,クラス集計1回目!N17,クラス集計1回目!O17)","v":0},{"$f":"SUM(クラス集計1回目!H17,クラス集計1回目!I17,クラス集計1回目!J17,クラス集計1回目!K17)","v":0},{"$f":"SUM(クラス集計1回目!D17,クラス集計1回目!E17,クラス集計1回目!F17,クラス集計1回目!G17)","v":0}]
[15,null,null,null,null,null,null,null,null,null,null,null,null,null,null,null,null,null,null,null,null,null,null,0,null,{"$f":"SUM(クラス集計1回目!T18,クラス集計1回目!U18,クラス集計1回目!V18,クラス集計1回目!W18)","v":0},{"$f":"SUM(クラス集計1回目!P18,クラス集計1回目!Q18,クラス集計1回目!R18,クラス集計1回目!S18)","v":0},{"$f":"SUM(クラス集計1回目!L18,クラス集計1回目!M18,クラス集計1回目!N18,クラス集計1回目!O18)","v":0},{"$f":"SUM(クラス集計1回目!H18,クラス集計1回目!I18,クラス集計1回目!J18,クラス集計1回目!K18)","v":0},{"$f":"SUM(クラス集計1回目!D18,クラス集計1回目!E18,クラス集計1回目!F18,クラス集計1回目!G18)","v":0}]
[16,null,null,null,null,null,null,null,null,null,null,null,null,null,null,null,null,null,null,null,null,null,null,0,null,{"$f":"SUM(クラス集計1回目!T19,クラス集計1回目!U19,クラス集計1回目!V19,クラス集計1回目!W19)","v":0},{"$f":"SUM(クラス集計1回目!P19,クラス集計1回目!Q19,クラス集計1回目!R19,クラス集計1回目!S19)","v":0},{"$f":"SUM(クラス集計1回目!L19,クラス集計1回目!M19,クラス集計1回目!N19,クラス集計1回目!O19)","v":0},{"$f":"SUM(クラス集計1回目!H19,クラス集計1回目!I19,クラス集計1回目!J19,クラス集計1回目!K19)","v":0},{"$f":"SUM(クラス集計1回目!D19,クラス集計1回目!E19,クラス集計1回目!F19,クラス集計1回目!G19)","v":0}]
[17,null,null,null,null,null,null,null,null,null,null,null,null,null,null,null,null,null,null,null,null,null,null,0,null,{"$f":"SUM(クラス集計1回目!T20,クラス集計1回目!U20,クラス集計1回目!V20,クラス集計1回目!W20)","v":0},{"$f":"SUM(クラス集計1回目!P20,クラス集計1回目!Q20,クラス集計1回目!R20,クラス集計1回目!S20)","v":0},{"$f":"SUM(クラス集計1回目!L20,クラス集計1回目!M20,クラス集計1回目!N20,クラス集計1回目!O20)","v":0},{"$f":"SUM(クラス集計1回目!H20,クラス集計1回目!I20,クラス集計1回目!J20,クラス集計1回目!K20)","v":0},{"$f":"SUM(クラス集計1回目!D20,クラス集計1回目!E20,クラス集計1回目!F20,クラス集計1回目!G20)","v":0}]
[18,null,null,null,null,null,null,null,null,null,null,null,null,null,null,null,null,null,null,null,null,null,null,0,null,{"$f":"SUM(クラス集計1回目!T21,クラス集計1回目!U21,クラス集計1回目!V21,クラス集計1回目!W21)","v":0},{"$f":"SUM(クラス集計1回目!P21,クラス集計1回目!Q21,クラス集計1回目!R21,クラス集計1回目!S21)","v":0},{"$f":"SUM(クラス集計1回目!L21,クラス集計1回目!M21,クラス集計1回目!N21,クラス集計1回目!O21)","v":0},{"$f":"SUM(クラス集計1回目!H21,クラス集計1回目!I21,クラス集計1回目!J21,クラス集計1回目!K21)","v":0},{"$f":"SUM(クラス集計1回目!D21,クラス集計1回目!E21,クラス集計1回目!F21,クラス集計1回目!G21)","v":0}]
[19,null,null,null,null,null,null,null,null,null,null,null,null,null,null,null,null,null,null,null,null,null,null,0,null,{"$f":"SUM(クラス集計1回目!T22,クラス集計1回目!U22,クラス集計1回目!V22,クラス集計1回目!W22)","v":0},{"$f":"SUM(クラス集計1回目!P22,クラス集計1回目!Q22,クラス集計1回目!R22,クラス集計1回目!S22)","v":0},{"$f":"SUM(クラス集計1回目!L22,クラス集計1回目!M22,クラス集計1回目!N22,クラス集計1回目!O22)","v":0},{"$f":"SUM(クラス集計1回目!H22,クラス集計1回目!I22,クラス集計1回目!J22,クラス集計1回目!K22)","v":0},{"$f":"SUM(クラス集計1回目!D22,クラス集計1回目!E22,クラス集計1回目!F22,クラス集計1回目!G22)","v":0}]
[20,null,null,null,null,null,null,null,null,null,null,null,null,null,null,null,null,null,null,null,null,null,null,0,null,{"$f":"SUM(クラス集計1回目!T23,クラス集計1回目!U23,クラス集計1回目!V23,クラス集計1回目!W23)","v":0},{"$f":"SUM(クラス集計1回目!P23,クラス集計1回目!Q23,クラス集計1回目!R23,クラス集計1回目!S23)","v":0},{"$f":"SUM(クラス集計1回目!L23,クラス集計1回目!M23,クラス集計1回目!N23,クラス集計1回目!O23)","v":0},{"$f":"SUM(クラス集計1回目!H23,クラス集計1回目!I23,クラス集計1回目!J23,クラス集計1回目!K23)","v":0},{"$f":"SUM(クラス集計1回目!D23,クラス集計1回目!E23,クラス集計1回目!F23,クラス集計1回目!G23)","v":0}]
[21,null,null,null,null,null,null,null,null,null,null,null,null,null,null,null,null,null,null,null,null,null,null,0,null,{"$f":"SUM(クラス集計1回目!T24,クラス集計1回目!U24,クラス集計1回目!V24,クラス集計1回目!W24)","v":0},{"$f":"SUM(クラス集計1回目!P24,クラス集計1回目!Q24,クラス集計1回目!R24,クラス集計1回目!S24)","v":0},{"$f":"SUM(クラス集計1回目!L24,クラス集計1回目!M24,クラス集計1回目!N24,クラス集計1回目!O24)","v":0},{"$f":"SUM(クラス集計1回目!H24,クラス集計1回目!I24,クラス集計1回目!J24,クラス集計1回目!K24)","v":0},{"$f":"SUM(クラス集計1回目!D24,クラス集計1回目!E24,クラス集計1回目!F24,クラス集計1回目!G24)","v":0}]
[22,null,null,null,null,null,null,null,null,null,null,null,null,null,null,null,null,null,null,null,null,null,null,0,null,{"$f":"SUM(クラス集計1回目!T25,クラス集計1回目!U25,クラス集計1回目!V25,クラス集計1回目!W25)","v":0},{"$f":"SUM(クラス集計1回目!P25,クラス集計1回目!Q25,クラス集計1回目!R25,クラス集計1回目!S25)","v":0},{"$f":"SUM(クラス集計1回目!L25,クラス集計1回目!M25,クラス集計1回目!N25,クラス集計1回目!O25)","v":0},{"$f":"SUM(クラス集計1回目!H25,クラス集計1回目!I25,クラス集計1回目!J25,クラス集計1回目!K25)","v":0},{"$f":"SUM(クラス集計1回目!D25,クラス集計1回目!E25,クラス集計1回目!F25,クラス集計1回目!G25)","v":0}]
[23,null,null,null,null,null,null,null,null,null,null,null,null,null,null,null,null,null,null,null,null,null,null,0,null,{"$f":"SUM(クラス集計1回目!T26,クラス集計1回目!U26,クラス集計1回目!V26,クラス集計1回目!W26)","v":0},{"$f":"SUM(クラス集計1回目!P26,クラス集計1回目!Q26,クラス集計1回目!R26,クラス集計1回目!S26)","v":0},{"$f":"SUM(クラス集計1回目!L26,クラス集計1回目!M26,クラス集計1回目!N26,クラス集計1回目!O26)","v":0},{"$f":"SUM(クラス集計1回目!H26,クラス集計1回目!I26,クラス集計1回目!J26,クラス集計1回目!K26)","v":0},{"$f":"SUM(クラス集計1回目!D26,クラス集計1回目!E26,クラス集計1回目!F26,クラス集計1回目!G26)","v":0}]
[24,null,null,null,null,null,null,null,null,null,null,null,null,null,null,null,null,null,null,null,null,null,null,0,null,{"$f":"SUM(クラス集計1回目!T27,クラス集計1回目!U27,クラス集計1回目!V27,クラス集計1回目!W27)","v":0},{"$f":"SUM(クラス集計1回目!P27,クラス集計1回目!Q27,クラス集計1回目!R27,クラス集計1回目!S27)","v":0},{"$f":"SUM(クラス集計1回目!L27,クラス集計1回目!M27,クラス集計1回目!N27,クラス集計1回目!O27)","v":0},{"$f":"SUM(クラス集計1回目!H27,クラス集計1回目!I27,クラス集計1回目!J27,クラス集計1回目!K27)","v":0},{"$f":"SUM(クラス集計1回目!D27,クラス集計1回目!E27,クラス集計1回目!F27,クラス集計1回目!G27)","v":0}]
[25,null,null,null,null,null,null,null,null,null,null,null,null,null,null,null,null,null,null,null,null,null,null,0,null,{"$f":"SUM(クラス集計1回目!T28,クラス集計1回目!U28,クラス集計1回目!V28,クラス集計1回目!W28)","v":0},{"$f":"SUM(クラス集計1回目!P28,クラス集計1回目!Q28,クラス集計1回目!R28,クラス集計1回目!S28)","v":0},{"$f":"SUM(クラス集計1回目!L28,クラス集計1回目!M28,クラス集計1回目!N28,クラス集計1回目!O28)","v":0},{"$f":"SUM(クラス集計1回目!H28,クラス集計1回目!I28,クラス集計1回目!J28,クラス集計1回目!K28)","v":0},{"$f":"SUM(クラス集計1回目!D28,クラス集計1回目!E28,クラス集計1回目!F28,クラス集計1回目!G28)","v":0}]
[26,null,null,null,null,null,null,null,null,null,null,null,null,null,null,null,null,null,null,null,null,null,null,0,null,{"$f":"SUM(クラス集計1回目!T29,クラス集計1回目!U29,クラス集計1回目!V29,クラス集計1回目!W29)","v":0},{"$f":"SUM(クラス集計1回目!P29,クラス集計1回目!Q29,クラス集計1回目!R29,クラス集計1回目!S29)","v":0},{"$f":"SUM(クラス集計1回目!L29,クラス集計1回目!M29,クラス集計1回目!N29,クラス集計1回目!O29)","v":0},{"$f":"SUM(クラス集計1回目!H29,クラス集計1回目!I29,クラス集計1回目!J29,クラス集計1回目!K29)","v":0},{"$f":"SUM(クラス集計1回目!D29,クラス集計1回目!E29,クラス集計1回目!F29,クラス集計1回目!G29)","v":0}]
[27,null,null,null,null,null,null,null,null,null,null,null,null,null,null,null,null,null,null,null,null,null,null,0,null,{"$f":"SUM(クラス集計1回目!T30,クラス集計1回目!U30,クラス集計1回目!V30,クラス集計1回目!W30)","v":0},{"$f":"SUM(クラス集計1回目!P30,クラス集計1回目!Q30,クラス集計1回目!R30,クラス集計1回目!S30)","v":0},{"$f":"SUM(クラス集計1回目!L30,クラス集計1回目!M30,クラス集計1回目!N30,クラス集計1回目!O30)","v":0},{"$f":"SUM(クラス集計1回目!H30,クラス集計1回目!I30,クラス集計1回目!J30,クラス集計1回目!K30)","v":0},{"$f":"SUM(クラス集計1回目!D30,クラス集計1回目!E30,クラス集計1回目!F30,クラス集計1回目!G30)","v":0}]
[28,null,null,null,null,null,null,null,null,null,null,null,null,null,null,null,null,null,null,null,null,null,null,0,null,{"$f":"SUM(クラス集計1回目!T31,クラス集計1回目!U31,クラス集計1回目!V31,クラス集計1回目!W31)","v":0},{"$f":"SUM(クラス集計1回目!P31,クラス集計1回目!Q31,クラス集計1回目!R31,クラス集計1回目!S31)","v":0},{"$f":"SUM(クラス集計1回目!L31,クラス集計1回目!M31,クラス集計1回目!N31,クラス集計1回目!O31)","v":0},{"$f":"SUM(クラス集計1回目!H31,クラス集計1回目!I31,クラス集計1回目!J31,クラス集計1回目!K31)","v":0},{"$f":"SUM(クラス集計1回目!D31,クラス集計1回目!E31,クラス集計1回目!F31,クラス集計1回目!G31)","v":0}]
[29,null,null,null,null,null,null,null,null,null,null,null,null,null,null,null,null,null,null,null,null,null,null,0,null,{"$f":"SUM(クラス集計1回目!T32,クラス集計1回目!U32,クラス集計1回目!V32,クラス集計1回目!W32)","v":0},{"$f":"SUM(クラス集計1回目!P32,クラス集計1回目!Q32,クラス集計1回目!R32,クラス集計1回目!S32)","v":0},{"$f":"SUM(クラス集計1回目!L32,クラス集計1回目!M32,クラス集計1回目!N32,クラス集計1回目!O32)","v":0},{"$f":"SUM(クラス集計1回目!H32,クラス集計1回目!I32,クラス集計1回目!J32,クラス集計1回目!K32)","v":0},{"$f":"SUM(クラス集計1回目!D32,クラス集計1回目!E32,クラス集計1回目!F32,クラス集計1回目!G32)","v":0}]
[30,null,null,null,null,null,null,null,null,null,null,null,null,null,null,null,null,null,null,null,null,null,null,0,null,{"$f":"SUM(クラス集計1回目!T33,クラス集計1回目!U33,クラス集計1回目!V33,クラス集計1回目!W33)","v":0},{"$f":"SUM(クラス集計1回目!P33,クラス集計1回目!Q33,クラス集計1回目!R33,クラス集計1回目!S33)","v":0},{"$f":"SUM(クラス集計1回目!L33,クラス集計1回目!M33,クラス集計1回目!N33,クラス集計1回目!O33)","v":0},{"$f":"SUM(クラス集計1回目!H33,クラス集計1回目!I33,クラス集計1回目!J33,クラス集計1回目!K33)","v":0},{"$f":"SUM(クラス集計1回目!D33,クラス集計1回目!E33,クラス集計1回目!F33,クラス集計1回目!G33)","v":0}]
[31,null,null,null,null,null,null,null,null,null,null,null,null,null,null,null,null,null,null,null,null,null,null,0,null,{"$f":"SUM(クラス集計1回目!T34,クラス集計1回目!U34,クラス集計1回目!V34,クラス集計1回目!W34)","v":0},{"$f":"SUM(クラス集計1回目!P34,クラス集計1回目!Q34,クラス集計1回目!R34,クラス集計1回目!S34)","v":0},{"$f":"SUM(クラス集計1回目!L34,クラス集計1回目!M34,クラス集計1回目!N34,クラス集計1回目!O34)","v":0},{"$f":"SUM(クラス集計1回目!H34,クラス集計1回目!I34,クラス集計1回目!J34,クラス集計1回目!K34)","v":0},{"$f":"SUM(クラス集計1回目!D34,クラス集計1回目!E34,クラス集計1回目!F34,クラス集計1回目!G34)","v":0}]
[32,null,null,null,null,null,null,null,null,null,null,null,null,null,null,null,null,null,null,null,null,null,null,0,null,{"$f":"SUM(クラス集計1回目!T35,クラス集計1回目!U35,クラス集計1回目!V35,クラス集計1回目!W35)","v":0},{"$f":"SUM(クラス集計1回目!P35,クラス集計1回目!Q35,クラス集計1回目!R35,クラス集計1回目!S35)","v":0},{"$f":"SUM(クラス集計1回目!L35,クラス集計1回目!M35,クラス集計1回目!N35,クラス集計1回目!O35)","v":0},{"$f":"SUM(クラス集計1回目!H35,クラス集計1回目!I35,クラス集計1回目!J35,クラス集計1回目!K35)","v":0},{"$f":"SUM(クラス集計1回目!D35,クラス集計1回目!E35,クラス集計1回目!F35,クラス集計1回目!G35)","v":0}]
[33,null,null,null,null,null,null,null,null,null,null,null,null,null,null,null,null,null,null,null,null,null,null,0,null,{"$f":"SUM(クラス集計1回目!T36,クラス集計1回目!U36,クラス集計1回目!V36,クラス集計1回目!W36)","v":0},{"$f":"SUM(クラス集計1回目!P36,クラス集計1回目!Q36,クラス集計1回目!R36,クラス集計1回目!S36)","v":0},{"$f":"SUM(クラス集計1回目!L36,クラス集計1回目!M36,クラス集計1回目!N36,クラス集計1回目!O36)","v":0},{"$f":"SUM(クラス集計1回目!H36,クラス集計1回目!I36,クラス集計1回目!J36,クラス集計1回目!K36)","v":0},{"$f":"SUM(クラス集計1回目!D36,クラス集計1回目!E36,クラス集計1回目!F36,クラス集計1回目!G36)","v":0}]
[34,null,null,null,null,null,null,null,null,null,null,null,null,null,null,null,null,null,null,null,null,null,null,0,null,{"$f":"SUM(クラス集計1回目!T37,クラス集計1回目!U37,クラス集計1回目!V37,クラス集計1回目!W37)","v":0},{"$f":"SUM(クラス集計1回目!P37,クラス集計1回目!Q37,クラス集計1回目!R37,クラス集計1回目!S37)","v":0},{"$f":"SUM(クラス集計1回目!L37,クラス集計1回目!M37,クラス集計1回目!N37,クラス集計1回目!O37)","v":0},{"$f":"SUM(クラス集計1回目!H37,クラス集計1回目!I37,クラス集計1回目!J37,クラス集計1回目!K37)","v":0},{"$f":"SUM(クラス集計1回目!D37,クラス集計1回目!E37,クラス集計1回目!F37,クラス集計1回目!G37)","v":0}]
[35,null,null,null,null,null,null,null,null,null,null,null,null,null,null,null,null,null,null,null,null,null,null,0,null,{"$f":"SUM(クラス集計1回目!T38,クラス集計1回目!U38,クラス集計1回目!V38,クラス集計1回目!W38)","v":0},{"$f":"SUM(クラス集計1回目!P38,クラス集計1回目!Q38,クラス集計1回目!R38,クラス集計1回目!S38)","v":0},{"$f":"SUM(クラス集計1回目!L38,クラス集計1回目!M38,クラス集計1回目!N38,クラス集計1回目!O38)","v":0},{"$f":"SUM(クラス集計1回目!H38,クラス集計1回目!I38,クラス集計1回目!J38,クラス集計1回目!K38)","v":0},{"$f":"SUM(クラス集計1回目!D38,クラス集計1回目!E38,クラス集計1回目!F38,クラス集計1回目!G38)","v":0}]
[36,null,null,null,null,null,null,null,null,null,null,null,null,null,null,null,null,null,null,null,null,null,null,0,null,{"$f":"SUM(クラス集計1回目!T39,クラス集計1回目!U39,クラス集計1回目!V39,クラス集計1回目!W39)","v":0},{"$f":"SUM(クラス集計1回目!P39,クラス集計1回目!Q39,クラス集計1回目!R39,クラス集計1回目!S39)","v":0},{"$f":"SUM(クラス集計1回目!L39,クラス集計1回目!M39,クラス集計1回目!N39,クラス集計1回目!O39)","v":0},{"$f":"SUM(クラス集計1回目!H39,クラス集計1回目!I39,クラス集計1回目!J39,クラス集計1回目!K39)","v":0},{"$f":"SUM(クラス集計1回目!D39,クラス集計1回目!E39,クラス集計1回目!F39,クラス集計1回目!G39)","v":0}]
[37,null,null,null,null,null,null,null,null,null,null,null,null,null,null,null,null,null,null,null,null,null,null,0,null,{"$f":"SUM(クラス集計1回目!T40,クラス集計1回目!U40,クラス集計1回目!V40,クラス集計1回目!W40)","v":0},{"$f":"SUM(クラス集計1回目!P40,クラス集計1回目!Q40,クラス集計1回目!R40,クラス集計1回目!S40)","v":0},{"$f":"SUM(クラス集計1回目!L40,クラス集計1回目!M40,クラス集計1回目!N40,クラス集計1回目!O40)","v":0},{"$f":"SUM(クラス集計1回目!H40,クラス集計1回目!I40,クラス集計1回目!J40,クラス集計1回目!K40)","v":0},{"$f":"SUM(クラス集計1回目!D40,クラス集計1回目!E40,クラス集計1回目!F40,クラス集計1回目!G40)","v":0}]
[38,null,null,null,null,null,null,null,null,null,null,null,null,null,null,null,null,null,null,null,null,null,null,0,null,{"$f":"SUM(クラス集計1回目!T41,クラス集計1回目!U41,クラス集計1回目!V41,クラス集計1回目!W41)","v":0},{"$f":"SUM(クラス集計1回目!P41,クラス集計1回目!Q41,クラス集計1回目!R41,クラス集計1回目!S41)","v":0},{"$f":"SUM(クラス集計1回目!L41,クラス集計1回目!M41,クラス集計1回目!N41,クラス集計1回目!O41)","v":0},{"$f":"SUM(クラス集計1回目!H41,クラス集計1回目!I41,クラス集計1回目!J41,クラス集計1回目!K41)","v":0},{"$f":"SUM(クラス集計1回目!D41,クラス集計1回目!E41,クラス集計1回目!F41,クラス集計1回目!G41)","v":0}]
[39,null,null,null,null,null,null,null,null,null,null,null,null,null,null,null,null,null,null,null,null,null,null,0,null,{"$f":"SUM(クラス集計1回目!T42,クラス集計1回目!U42,クラス集計1回目!V42,クラス集計1回目!W42)","v":0},{"$f":"SUM(クラス集計1回目!P42,クラス集計1回目!Q42,クラス集計1回目!R42,クラス集計1回目!S42)","v":0},{"$f":"SUM(クラス集計1回目!L42,クラス集計1回目!M42,クラス集計1回目!N42,クラス集計1回目!O42)","v":0},{"$f":"SUM(クラス集計1回目!H42,クラス集計1回目!I42,クラス集計1回目!J42,クラス集計1回目!K42)","v":0},{"$f":"SUM(クラス集計1回目!D42,クラス集計1回目!E42,クラス集計1回目!F42,クラス集計1回目!G42)","v":0}]
[40,null,null,null,null,null,null,null,null,null,null,null,null,null,null,null,null,null,null,null,null,null,null,0,null,{"$f":"SUM(クラス集計1回目!T43,クラス集計1回目!U43,クラス集計1回目!V43,クラス集計1回目!W43)","v":0},{"$f":"SUM(クラス集計1回目!P43,クラス集計1回目!Q43,クラス集計1回目!R43,クラス集計1回目!S43)","v":0},{"$f":"SUM(クラス集計1回目!L43,クラス集計1回目!M43,クラス集計1回目!N43,クラス集計1回目!O43)","v":0},{"$f":"SUM(クラス集計1回目!H43,クラス集計1回目!I43,クラス集計1回目!J43,クラス集計1回目!K43)","v":0},{"$f":"SUM(クラス集計1回目!D43,クラス集計1回目!E43,クラス集計1回目!F43,クラス集計1回目!G43)","v":0}]
[41,null,null,null,null,null,null,null,null,null,null,null,null,null,null,null,null,null,null,null,null,null,null,0,null,{"$f":"SUM(クラス集計1回目!T44,クラス集計1回目!U44,クラス集計1回目!V44,クラス集計1回目!W44)","v":0},{"$f":"SUM(クラス集計1回目!P44,クラス集計1回目!Q44,クラス集計1回目!R44,クラス集計1回目!S44)","v":0},{"$f":"SUM(クラス集計1回目!L44,クラス集計1回目!M44,クラス集計1回目!N44,クラス集計1回目!O44)","v":0},{"$f":"SUM(クラス集計1回目!H44,クラス集計1回目!I44,クラス集計1回目!J44,クラス集計1回目!K44)","v":0},{"$f":"SUM(クラス集計1回目!D44,クラス集計1回目!E44,クラス集計1回目!F44,クラス集計1回目!G44)","v":0}]
[42,null,null,null,null,null,null,null,null,null,null,null,null,null,null,null,null,null,null,null,null,null,null,0,null,{"$f":"SUM(クラス集計1回目!T45,クラス集計1回目!U45,クラス集計1回目!V45,クラス集計1回目!W45)","v":0},{"$f":"SUM(クラス集計1回目!P45,クラス集計1回目!Q45,クラス集計1回目!R45,クラス集計1回目!S45)","v":0},{"$f":"SUM(クラス集計1回目!L45,クラス集計1回目!M45,クラス集計1回目!N45,クラス集計1回目!O45)","v":0},{"$f":"SUM(クラス集計1回目!H45,クラス集計1回目!I45,クラス集計1回目!J45,クラス集計1回目!K45)","v":0},{"$f":"SUM(クラス集計1回目!D45,クラス集計1回目!E45,クラス集計1回目!F45,クラス集計1回目!G45)","v":0}]
[43,null,null,null,null,null,null,null,null,null,null,null,null,null,null,null,null,null,null,null,null,null,null,0,null,{"$f":"SUM(クラス集計1回目!T46,クラス集計1回目!U46,クラス集計1回目!V46,クラス集計1回目!W46)","v":0},{"$f":"SUM(クラス集計1回目!P46,クラス集計1回目!Q46,クラス集計1回目!R46,クラス集計1回目!S46)","v":0},{"$f":"SUM(クラス集計1回目!L46,クラス集計1回目!M46,クラス集計1回目!N46,クラス集計1回目!O46)","v":0},{"$f":"SUM(クラス集計1回目!H46,クラス集計1回目!I46,クラス集計1回目!J46,クラス集計1回目!K46)","v":0},{"$f":"SUM(クラス集計1回目!D46,クラス集計1回目!E46,クラス集計1回目!F46,クラス集計1回目!G46)","v":0}]
[44,null,null,null,null,null,null,null,null,null,null,null,null,null,null,null,null,null,null,null,null,null,null,0,null,{"$f":"SUM(クラス集計1回目!T47,クラス集計1回目!U47,クラス集計1回目!V47,クラス集計1回目!W47)","v":0},{"$f":"SUM(クラス集計1回目!P47,クラス集計1回目!Q47,クラス集計1回目!R47,クラス集計1回目!S47)","v":0},{"$f":"SUM(クラス集計1回目!L47,クラス集計1回目!M47,クラス集計1回目!N47,クラス集計1回目!O47)","v":0},{"$f":"SUM(クラス集計1回目!H47,クラス集計1回目!I47,クラス集計1回目!J47,クラス集計1回目!K47)","v":0},{"$f":"SUM(クラス集計1回目!D47,クラス集計1回目!E47,クラス集計1回目!F47,クラス集計1回目!G47)","v":0}]
[45,null,null,null,null,null,null,null,null,null,null,null,null,null,null,null,null,null,null,null,null,null,null,0,null,{"$f":"SUM(クラス集計1回目!T48,クラス集計1回目!U48,クラス集計1回目!V48,クラス集計1回目!W48)","v":0},{"$f":"SUM(クラス集計1回目!P48,クラス集計1回目!Q48,クラス集計1回目!R48,クラス集計1回目!S48)","v":0},{"$f":"SUM(クラス集計1回目!L48,クラス集計1回目!M48,クラス集計1回目!N48,クラス集計1回目!O48)","v":0},{"$f":"SUM(クラス集計1回目!H48,クラス集計1回目!I48,クラス集計1回目!J48,クラス集計1回目!K48)","v":0},{"$f":"SUM(クラス集計1回目!D48,クラス集計1回目!E48,クラス集計1回目!F48,クラス集計1回目!G48)","v":0}]
["合計",null,null,{"$f":"SUM(D4:D48)","v":0},{"$f":"SUM(E4:E48)","v":0},0,0,0,0,0,0,0,0,0,0,0,0,0,0,0,0,0,0,0,null,{"$f":"SUM(クラス集計1回目!T49,クラス集計1回目!U49,クラス集計1回目!V49,クラス集計1回目!W49)","v":0},{"$f":"SUM(クラス集計1回目!P49,クラス集計1回目!Q49,クラス集計1回目!R49,クラス集計1回目!S49)","v":0},{"$f":"SUM(クラス集計1回目!L49,クラス集計1回目!M49,クラス集計1回目!N49,クラス集計1回目!O49)","v":0},{"$f":"SUM(クラス集計1回目!H49,クラス集計1回目!I49,クラス集計1回目!J49,クラス集計1回目!K49)","v":0},{"$f":"SUM(クラス集計1回目!D49,クラス集計1回目!E49,クラス集計1回目!F49,クラス集計1回目!G49)","v":0}]
[]
[]
[null,"※オレンジ色が付いているところだけ入力してください。"]
[null,"１．　名前と性別を入力して下さい。"]
[null,"２．　解答欄には、正解の所に「１」を入力して下さい。"]
[null,"３．　クラス集計に入力し、個票で各個人のレーダーチャートを印刷してください。"]
[null,"４．　レーダーチャートを見て、各領域での「強み」「弱み」を、今後の指導に活用下さい。"]
[]
[]
[null,"領域","合計値"]
[null,"情報モラル",{"$f":"Z49","v":0}]
[null,"参画する態度",{"$f":"AA49","v":0}]
[null,"情報技術",{"$f":"AB49","v":0}]
[null,"法律",{"$f":"AC49","v":0}]
[null,"機器の利用",{"$f":"AD49","v":0}]

{"sheet":"クラス集計2回目","index":1,"n_rows":64,"n_cols":30,"rows_kept":64,"cut":false,"hidden":false,"merged":[[48,0,48,2],[1,23,2,23],[1,25,1,29],[1,0,2,0],[1,1,2,1],[1,2,2,2],[1,3,1,22]]}
["【学校名：",null,{"$f":"IF(クラス集計1回目!C1=\"\",\"\",クラス集計1回目!C1)","v":""},"学校】",null,null,"【クラス名：",null,null,{"$f":"IF(クラス集計1回目!J1=\"\",\"\",クラス集計1回目!J1)","v":""},"】",null,null,null,"【担任名：",null,null,null,null,{"$f":"IF(クラス集計1回目!T1=\"\",\"\",クラス集計1回目!T1)","v":""},"】"]
["出席\n番号","名前","性別","問　　　題　　　番　　　号　【解　　答　　欄】",null,null,null,null,null,null,null,null,null,null,null,null,null,null,null,null,null,null,null,"合計",null,"個人　領域ごとの正当数"]
[null,null,null,1,2,3,4,5,6,7,8,9,10,11,12,13,14,15,16,17,18,19,20,null,null,"情報モラル","参画する態度","情報技術","法律","機器の利用"]
[1,{"$f":"IF(クラス集計1回目!B4=\"\",\"\",クラス集計1回目!B4)","v":""},{"$f":"IF(クラス集計1回目!C4=\"\",\"\",クラス集計1回目!C4)","v":""},null,null,null,null,null,null,null,null,null,null,null,null,null,null,null,null,null,null,null,null,{"$f":"SUM(D4:W4)","v":0},null,{"$f":"SUM(クラス集計2回目!T4,クラス集計2回目!U4,クラス集計2回目!V4,クラス集計2回目!W4)","v":0},{"$f":"SUM(クラス集計2回目!P4,クラス集計2回目!Q4,クラス集計2回目!R4,クラス集計2回目!S4)","v":0},{"$f":"SUM(クラス集計2回目!L4,クラス集計2回目!M4,クラス集計2回目!N4,クラス集計2回目!O4)","v":0},{"$f":"SUM(クラス集計2回目!H4,クラス集計2回目!I4,クラス集計2回目!J4,クラス集計2回目!K4)","v":0},{"$f":"SUM(クラス集計2回目!D4,クラス集計2回目!E4,クラス集計2回目!F4,クラス集計2回目!G4)","v":0}]
[2,{"$f":"IF(クラス集計1回目!B5=\"\",\"\",クラス集計1回目!B5)","v":""},{"$f":"IF(クラス集計1回目!C5=\"\",\"\",クラス集計1回目!C5)","v":""},null,null,null,null,null,null,null,null,null,null,null,null,null,null,null,null,null,null,null,null,{"$f":"SUM(D5:W5)","v":0},null,{"$f":"SUM(クラス集計2回目!T5,クラス集計2回目!U5,クラス集計2回目!V5,クラス集計2回目!W5)","v":0},{"$f":"SUM(クラス集計2回目!P5,クラス集計2回目!Q5,クラス集計2回目!R5,クラス集計2回目!S5)","v":0},{"$f":"SUM(クラス集計2回目!L5,クラス集計2回目!M5,クラス集計2回目!N5,クラス集計2回目!O5)","v":0},{"$f":"SUM(クラス集計2回目!H5,クラス集計2回目!I5,クラス集計2回目!J5,クラス集計2回目!K5)","v":0},{"$f":"SUM(クラス集計2回目!D5,クラス集計2回目!E5,クラス集計2回目!F5,クラス集計2回目!G5)","v":0}]
[3,{"$f":"IF(クラス集計1回目!B6=\"\",\"\",クラス集計1回目!B6)","v":""},{"$f":"IF(クラス集計1回目!C6=\"\",\"\",クラス集計1回目!C6)","v":""},null,null,null,null,null,null,null,null,null,null,null,null,null,null,null,null,null,null,null,null,0,null,{"$f":"SUM(クラス集計2回目!T6,クラス集計2回目!U6,クラス集計2回目!V6,クラス集計2回目!W6)","v":0},{"$f":"SUM(クラス集計2回目!P6,クラス集計2回目!Q6,クラス集計2回目!R6,クラス集計2回目!S6)","v":0},{"$f":"SUM(クラス集計2回目!L6,クラス集計2回目!M6,クラス集計2回目!N6,クラス集計2回目!O6)","v":0},{"$f":"SUM(クラス集計2回目!H6,クラス集計2回目!I6,クラス集計2回目!J6,クラス集計2回目!K6)","v":0},{"$f":"SUM(クラス集計2回目!D6,クラス集計2回目!E6,クラス集計2回目!F6,クラス集計2回目!G6)","v":0}]
[4,{"$f":"IF(クラス集計1回目!B7=\"\",\"\",クラス集計1回目!B7)","v":""},{"$f":"IF(クラス集計1回目!C7=\"\",\"\",クラス集計1回目!C7)","v":""},null,null,null,null,null,null,null,null,null,null,null,null,null,null,null,null,null,null,null,null,0,null,{"$f":"SUM(クラス集計2回目!T7,クラス集計2回目!U7,クラス集計2回目!V7,クラス集計2回目!W7)","v":0},{"$f":"SUM(クラス集計2回目!P7,クラス集計2回目!Q7,クラス集計2回目!R7,クラス集計2回目!S7)","v":0},{"$f":"SUM(クラス集計2回目!L7,クラス集計2回目!M7,クラス集計2回目!N7,クラス集計2回目!O7)","v":0},{"$f":"SUM(クラス集計2回目!H7,クラス集計2回目!I7,クラス集計2回目!J7,クラス集計2回目!K7)","v":0},{"$f":"SUM(クラス集計2回目!D7,クラス集計2回目!E7,クラス集計2回目!F7,クラス集計2回目!G7)","v":0}]
[5,{"$f":"IF(クラス集計1回目!B8=\"\",\"\",クラス集計1回目!B8)","v":""},{"$f":"IF(クラス集計1回目!C8=\"\",\"\",クラス集計1回目!C8)","v":""},null,null,null,null,null,null,null,null,null,null,null,null,null,null,null,null,null,null,null,null,0,null,{"$f":"SUM(クラス集計2回目!T8,クラス集計2回目!U8,クラス集計2回目!V8,クラス集計2回目!W8)","v":0},{"$f":"SUM(クラス集計2回目!P8,クラス集計2回目!Q8,クラス集計2回目!R8,クラス集計2回目!S8)","v":0},{"$f":"SUM(クラス集計2回目!L8,クラス集計2回目!M8,クラス集計2回目!N8,クラス集計2回目!O8)","v":0},{"$f":"SUM(クラス集計2回目!H8,クラス集計2回目!I8,クラス集計2回目!J8,クラス集計2回目!K8)","v":0},{"$f":"SUM(クラス集計2回目!D8,クラス集計2回目!E8,クラス集計2回目!F8,クラス集計2回目!G8)","v":0}]
[6,{"$f":"IF(クラス集計1回目!B9=\"\",\"\",クラス集計1回目!B9)","v":""},{"$f":"IF(クラス集計1回目!C9=\"\",\"\",クラス集計1回目!C9)","v":""},null,null,null,null,null,null,null,null,null,null,null,null,null,null,null,null,null,null,null,null,0,null,{"$f":"SUM(クラス集計2回目!T9,クラス集計2回目!U9,クラス集計2回目!V9,クラス集計2回目!W9)","v":0},{"$f":"SUM(クラス集計2回目!P9,クラス集計2回目!Q9,クラス集計2回目!R9,クラス集計2回目!S9)","v":0},{"$f":"SUM(クラス集計2回目!L9,クラス集計2回目!M9,クラス集計2回目!N9,クラス集計2回目!O9)","v":0},{"$f":"SUM(クラス集計2回目!H9,クラス集計2回目!I9,クラス集計2回目!J9,クラス集計2回目!K9)","v":0},{"$f":"SUM(クラス集計2回目!D9,クラス集計2回目!E9,クラス集計2回目!F9,クラス集計2回目!G9)","v":0}]
[7,{"$f":"IF(クラス集計1回目!B10=\"\",\"\",クラス集計1回目!B10)","v":""},{"$f":"IF(クラス集計1回目!C10=\"\",\"\",クラス集計1回目!C10)","v":""},null,null,null,null,null,null,null,null,null,null,null,null,null,null,null,null,null,null,null,null,0,null,{"$f":"SUM(クラス集計2回目!T10,クラス集計2回目!U10,クラス集計2回目!V10,クラス集計2回目!W10)","v":0},{"$f":"SUM(クラス集計2回目!P10,クラス集計2回目!Q10,クラス集計2回目!R10,クラス集計2回目!S10)","v":0},{"$f":"SUM(クラス集計2回目!L10,クラス集計2回目!M10,クラス集計2回目!N10,クラス集計2回目!O10)","v":0},{"$f":"SUM(クラス集計2回目!H10,クラス集計2回目!I10,クラス集計2回目!J10,クラス集計2回目!K10)","v":0},{"$f":"SUM(クラス集計2回目!D10,クラス集計2回目!E10,クラス集計2回目!F10,クラス集計2回目!G10)","v":0}]
[8,{"$f":"IF(クラス集計1回目!B11=\"\",\"\",クラス集計1回目!B11)","v":""},{"$f":"IF(クラス集計1回目!C11=\"\",\"\",クラス集計1回目!C11)","v":""},null,null,null,null,null,null,null,null,null,null,null,null,null,null,null,null,null,null,null,null,0,null,{"$f":"SUM(クラス集計2回目!T11,クラス集計2回目!U11,クラス集計2回目!V11,クラス集計2回目!W11)","v":0},{"$f":"SUM(クラス集計2回目!P11,クラス集計2回目!Q11,クラス集計2回目!R11,クラス集計2回目!S11)","v":0},{"$f":"SUM(クラス集計2回目!L11,クラス集計2回目!M11,クラス集計2回目!N11,クラス集計2回目!O11)","v":0},{"$f":"SUM(クラス集計2回目!H11,クラス集計2回目!I11,クラス集計2回目!J11,クラス集計2回目!K11)","v":0},{"$f":"SUM(クラス集計2回目!D11,クラス集計2回目!E11,クラス集計2回目!F11,クラス集計2回目!G11)","v":0}]
[9,{"$f":"IF(クラス集計1回目!B12=\"\",\"\",クラス集計1回目!B12)","v":""},{"$f":"IF(クラス集計1回目!C12=\"\",\"\",クラス集計1回目!C12)","v":""},null,null,null,null,null,null,null,null,null,null,null,null,null,null,null,null,null,null,null,null,0,null,{"$f":"SUM(クラス集計2回目!T12,クラス集計2回目!U12,クラス集計2回目!V12,クラス集計2回目!W12)","v":0},{"$f":"SUM(クラス集計2回目!P12,クラス集計2回目!Q12,クラス集計2回目!R12,クラス集計2回目!S12)","v":0},{"$f":"SUM(クラス集計2回目!L12,クラス集計2回目!M12,クラス集計2回目!N12,クラス集計2回目!O12)","v":0},{"$f":"SUM(クラス集計2回目!H12,クラス集計2回目!I12,クラス集計2回目!J12,クラス集計2回目!K12)","v":0},{"$f":"SUM(クラス集計2回目!D12,クラス集計2回目!E12,クラス集計2回目!F12,クラス集計2回目!G12)","v":0}]
[10,{"$f":"IF(クラス集計1回目!B13=\"\",\"\",クラス集計1回目!B13)","v":""},{"$f":"IF(クラス集計1回目!C13=\"\",\"\",クラス集計1回目!C13)","v":""},null,null,null,null,null,null,null,null,null,null,null,null,null,null,null,null,null,null,null,null,0,null,{"$f":"SUM(クラス集計2回目!T13,クラス集計2回目!U13,クラス集計2回目!V13,クラス集計2回目!W13)","v":0},{"$f":"SUM(クラス集計2回目!P13,クラス集計2回目!Q13,クラス集計2回目!R13,クラス集計2回目!S13)","v":0},{"$f":"SUM(クラス集計2回目!L13,クラス集計2回目!M13,クラス集計2回目!N13,クラス集計2回目!O13)","v":0},{"$f":"SUM(クラス集計2回目!H13,クラス集計2回目!I13,クラス集計2回目!J13,クラス集計2回目!K13)","v":0},{"$f":"SUM(クラス集計2回目!D13,クラス集計2回目!E13,クラス集計2回目!F13,クラス集計2回目!G13)","v":0}]
[11,{"$f":"IF(クラス集計1回目!B14=\"\",\"\",クラス集計1回目!B14)","v":""},{"$f":"IF(クラス集計1回目!C14=\"\",\"\",クラス集計1回目!C14)","v":""},null,null,null,null,null,null,null,null,null,null,null,null,null,null,null,null,null,null,null,null,0,null,{"$f":"SUM(クラス集計2回目!T14,クラス集計2回目!U14,クラス集計2回目!V14,クラス集計2回目!W14)","v":0},{"$f":"SUM(クラス集計2回目!P14,クラス集計2回目!Q14,クラス集計2回目!R14,クラス集計2回目!S14)","v":0},{"$f":"SUM(クラス集計2回目!L14,クラス集計2回目!M14,クラス集計2回目!N14,クラス集計2回目!O14)","v":0},{"$f":"SUM(クラス集計2回目!H14,クラス集計2回目!I14,クラス集計2回目!J14,クラス集計2回目!K14)","v":0},{"$f":"SUM(クラス集計2回目!D14,クラス集計2回目!E14,クラス集計2回目!F14,クラス集計2回目!G14)","v":0}]
[12,{"$f":"IF(クラス集計1回目!B15=\"\",\"\",クラス集計1回目!B15)","v":""},{"$f":"IF(クラス集計1回目!C15=\"\",\"\",クラス集計1回目!C15)","v":""},null,null,null,null,null,null,null,null,null,null,null,null,null,null,null,null,null,null,null,null,0,null,{"$f":"SUM(クラス集計2回目!T15,クラス集計2回目!U15,クラス集計2回目!V15,クラス集計2回目!W15)","v":0},{"$f":"SUM(クラス集計2回目!P15,クラス集計2回目!Q15,クラス集計2回目!R15,クラス集計2回目!S15)","v":0},{"$f":"SUM(クラス集計2回目!L15,クラス集計2回目!M15,クラス集計2回目!N15,クラス集計2回目!O15)","v":0},{"$f":"SUM(クラス集計2回目!H15,クラス集計2回目!I15,クラス集計2回目!J15,クラス集計2回目!K15)","v":0},{"$f":"SUM(クラス集計2回目!D15,クラス集計2回目!E15,クラス集計2回目!F15,クラス集計2回目!G15)","v":0}]
[13,{"$f":"IF(クラス集計1回目!B16=\"\",\"\",クラス集計1回目!B16)","v":""},{"$f":"IF(クラス集計1回目!C16=\"\",\"\",クラス集計1回目!C16)","v":""},null,null,null,null,null,null,null,null,null,null,null,null,null,null,null,null,null,null,null,null,0,null,{"$f":"SUM(クラス集計2回目!T16,クラス集計2回目!U16,クラス集計2回目!V16,クラス集計2回目!W16)","v":0},{"$f":"SUM(クラス集計2回目!P16,クラス集計2回目!Q16,クラス集計2回目!R16,クラス集計2回目!S16)","v":0},{"$f":"SUM(クラス集計2回目!L16,クラス集計2回目!M16,クラス集計2回目!N16,クラス集計2回目!O16)","v":0},{"$f":"SUM(クラス集計2回目!H16,クラス集計2回目!I16,クラス集計2回目!J16,クラス集計2回目!K16)","v":0},{"$f":"SUM(クラス集計2回目!D16,クラス集計2回目!E16,クラス集計2回目!F16,クラス集計2回目!G16)","v":0}]
[14,{"$f":"IF(クラス集計1回目!B17=\"\",\"\",クラス集計1回目!B17)","v":""},{"$f":"IF(クラス集計1回目!C17=\"\",\"\",クラス集計1回目!C17)","v":""},null,null,null,null,null,null,null,null,null,null,null,null,null,null,null,null,null,null,null,null,0,null,{"$f":"SUM(クラス集計2回目!T17,クラス集計2回目!U17,クラス集計2回目!V17,クラス集計2回目!W17)","v":0},{"$f":"SUM(クラス集計2回目!P17,クラス集計2回目!Q17,クラス集計2回目!R17,クラス集計2回目!S17)","v":0},{"$f":"SUM(クラス集計2回目!L17,クラス集計2回目!M17,クラス集計2回目!N17,クラス集計2回目!O17)","v":0},{"$f":"SUM(クラス集計2回目!H17,クラス集計2回目!I17,クラス集計2回目!J17,クラス集計2回目!K17)","v":0},{"$f":"SUM(クラス集計2回目!D17,クラス集計2回目!E17,クラス集計2回目!F17,クラス集計2回目!G17)","v":0}]
[15,{"$f":"IF(クラス集計1回目!B18=\"\",\"\",クラス集計1回目!B18)","v":""},{"$f":"IF(クラス集計1回目!C18=\"\",\"\",クラス集計1回目!C18)","v":""},null,null,null,null,null,null,null,null,null,null,null,null,null,null,null,null,null,null,null,null,0,null,{"$f":"SUM(クラス集計2回目!T18,クラス集計2回目!U18,クラス集計2回目!V18,クラス集計2回目!W18)","v":0},{"$f":"SUM(クラス集計2回目!P18,クラス集計2回目!Q18,クラス集計2回目!R18,クラス集計2回目!S18)","v":0},{"$f":"SUM(クラス集計2回目!L18,クラス集計2回目!M18,クラス集計2回目!N18,クラス集計2回目!O18)","v":0},{"$f":"SUM(クラス集計2回目!H18,クラス集計2回目!I18,クラス集計2回目!J18,クラス集計2回目!K18)","v":0},{"$f":"SUM(クラス集計2回目!D18,クラス集計2回目!E18,クラス集計2回目!F18,クラス集計2回目!G18)","v":0}]
[16,{"$f":"IF(クラス集計1回目!B19=\"\",\"\",クラス集計1回目!B19)","v":""},{"$f":"IF(クラス集計1回目!C19=\"\",\"\",クラス集計1回目!C19)","v":""},null,null,null,null,null,null,null,null,null,null,null,null,null,null,null,null,null,null,null,null,0,null,{"$f":"SUM(クラス集計2回目!T19,クラス集計2回目!U19,クラス集計2回目!V19,クラス集計2回目!W19)","v":0},{"$f":"SUM(クラス集計2回目!P19,クラス集計2回目!Q19,クラス集計2回目!R19,クラス集計2回目!S19)","v":0},{"$f":"SUM(クラス集計2回目!L19,クラス集計2回目!M19,クラス集計2回目!N19,クラス集計2回目!O19)","v":0},{"$f":"SUM(クラス集計2回目!H19,クラス集計2回目!I19,クラス集計2回目!J19,クラス集計2回目!K19)","v":0},{"$f":"SUM(クラス集計2回目!D19,クラス集計2回目!E19,クラス集計2回目!F19,クラス集計2回目!G19)","v":0}]
[17,{"$f":"IF(クラス集計1回目!B20=\"\",\"\",クラス集計1回目!B20)","v":""},{"$f":"IF(クラス集計1回目!C20=\"\",\"\",クラス集計1回目!C20)","v":""},null,null,null,null,null,null,null,null,null,null,null,null,null,null,null,null,null,null,null,null,0,null,{"$f":"SUM(クラス集計2回目!T20,クラス集計2回目!U20,クラス集計2回目!V20,クラス集計2回目!W20)","v":0},{"$f":"SUM(クラス集計2回目!P20,クラス集計2回目!Q20,クラス集計2回目!R20,クラス集計2回目!S20)","v":0},{"$f":"SUM(クラス集計2回目!L20,クラス集計2回目!M20,クラス集計2回目!N20,クラス集計2回目!O20)","v":0},{"$f":"SUM(クラス集計2回目!H20,クラス集計2回目!I20,クラス集計2回目!J20,クラス集計2回目!K20)","v":0},{"$f":"SUM(クラス集計2回目!D20,クラス集計2回目!E20,クラス集計2回目!F20,クラス集計2回目!G20)","v":0}]
[18,{"$f":"IF(クラス集計1回目!B21=\"\",\"\",クラス集計1回目!B21)","v":""},{"$f":"IF(クラス集計1回目!C21=\"\",\"\",クラス集計1回目!C21)","v":""},null,null,null,null,null,null,null,null,null,null,null,null,null,null,null,null,null,null,null,null,0,null,{"$f":"SUM(クラス集計2回目!T21,クラス集計2回目!U21,クラス集計2回目!V21,クラス集計2回目!W21)","v":0},{"$f":"SUM(クラス集計2回目!P21,クラス集計2回目!Q21,クラス集計2回目!R21,クラス集計2回目!S21)","v":0},{"$f":"SUM(クラス集計2回目!L21,クラス集計2回目!M21,クラス集計2回目!N21,クラス集計2回目!O21)","v":0},{"$f":"SUM(クラス集計2回目!H21,クラス集計2回目!I21,クラス集計2回目!J21,クラス集計2回目!K21)","v":0},{"$f":"SUM(クラス集計2回目!D21,クラス集計2回目!E21,クラス集計2回目!F21,クラス集計2回目!G21)","v":0}]
[19,{"$f":"IF(クラス集計1回目!B22=\"\",\"\",クラス集計1回目!B22)","v":""},{"$f":"IF(クラス集計1回目!C22=\"\",\"\",クラス集計1回目!C22)","v":""},null,null,null,null,null,null,null,null,null,null,null,null,null,null,null,null,null,null,null,null,0,null,{"$f":"SUM(クラス集計2回目!T22,クラス集計2回目!U22,クラス集計2回目!V22,クラス集計2回目!W22)","v":0},{"$f":"SUM(クラス集計2回目!P22,クラス集計2回目!Q22,クラス集計2回目!R22,クラス集計2回目!S22)","v":0},{"$f":"SUM(クラス集計2回目!L22,クラス集計2回目!M22,クラス集計2回目!N22,クラス集計2回目!O22)","v":0},{"$f":"SUM(クラス集計2回目!H22,クラス集計2回目!I22,クラス集計2回目!J22,クラス集計2回目!K22)","v":0},{"$f":"SUM(クラス集計2回目!D22,クラス集計2回目!E22,クラス集計2回目!F22,クラス集計2回目!G22)","v":0}]
[20,{"$f":"IF(クラス集計1回目!B23=\"\",\"\",クラス集計1回目!B23)","v":""},{"$f":"IF(クラス集計1回目!C23=\"\",\"\",クラス集計1回目!C23)","v":""},null,null,null,null,null,null,null,null,null,null,null,null,null,null,null,null,null,null,null,null,0,null,{"$f":"SUM(クラス集計2回目!T23,クラス集計2回目!U23,クラス集計2回目!V23,クラス集計2回目!W23)","v":0},{"$f":"SUM(クラス集計2回目!P23,クラス集計2回目!Q23,クラス集計2回目!R23,クラス集計2回目!S23)","v":0},{"$f":"SUM(クラス集計2回目!L23,クラス集計2回目!M23,クラス集計2回目!N23,クラス集計2回目!O23)","v":0},{"$f":"SUM(クラス集計2回目!H23,クラス集計2回目!I23,クラス集計2回目!J23,クラス集計2回目!K23)","v":0},{"$f":"SUM(クラス集計2回目!D23,クラス集計2回目!E23,クラス集計2回目!F23,クラス集計2回目!G23)","v":0}]
[21,{"$f":"IF(クラス集計1回目!B24=\"\",\"\",クラス集計1回目!B24)","v":""},{"$f":"IF(クラス集計1回目!C24=\"\",\"\",クラス集計1回目!C24)","v":""},null,null,null,null,null,null,null,null,null,null,null,null,null,null,null,null,null,null,null,null,0,null,{"$f":"SUM(クラス集計2回目!T24,クラス集計2回目!U24,クラス集計2回目!V24,クラス集計2回目!W24)","v":0},{"$f":"SUM(クラス集計2回目!P24,クラス集計2回目!Q24,クラス集計2回目!R24,クラス集計2回目!S24)","v":0},{"$f":"SUM(クラス集計2回目!L24,クラス集計2回目!M24,クラス集計2回目!N24,クラス集計2回目!O24)","v":0},{"$f":"SUM(クラス集計2回目!H24,クラス集計2回目!I24,クラス集計2回目!J24,クラス集計2回目!K24)","v":0},{"$f":"SUM(クラス集計2回目!D24,クラス集計2回目!E24,クラス集計2回目!F24,クラス集計2回目!G24)","v":0}]
[22,{"$f":"IF(クラス集計1回目!B25=\"\",\"\",クラス集計1回目!B25)","v":""},{"$f":"IF(クラス集計1回目!C25=\"\",\"\",クラス集計1回目!C25)","v":""},null,null,null,null,null,null,null,null,null,null,null,null,null,null,null,null,null,null,null,null,0,null,{"$f":"SUM(クラス集計2回目!T25,クラス集計2回目!U25,クラス集計2回目!V25,クラス集計2回目!W25)","v":0},{"$f":"SUM(クラス集計2回目!P25,クラス集計2回目!Q25,クラス集計2回目!R25,クラス集計2回目!S25)","v":0},{"$f":"SUM(クラス集計2回目!L25,クラス集計2回目!M25,クラス集計2回目!N25,クラス集計2回目!O25)","v":0},{"$f":"SUM(クラス集計2回目!H25,クラス集計2回目!I25,クラス集計2回目!J25,クラス集計2回目!K25)","v":0},{"$f":"SUM(クラス集計2回目!D25,クラス集計2回目!E25,クラス集計2回目!F25,クラス集計2回目!G25)","v":0}]
[23,{"$f":"IF(クラス集計1回目!B26=\"\",\"\",クラス集計1回目!B26)","v":""},{"$f":"IF(クラス集計1回目!C26=\"\",\"\",クラス集計1回目!C26)","v":""},null,null,null,null,null,null,null,null,null,null,null,null,null,null,null,null,null,null,null,null,0,null,{"$f":"SUM(クラス集計2回目!T26,クラス集計2回目!U26,クラス集計2回目!V26,クラス集計2回目!W26)","v":0},{"$f":"SUM(クラス集計2回目!P26,クラス集計2回目!Q26,クラス集計2回目!R26,クラス集計2回目!S26)","v":0},{"$f":"SUM(クラス集計2回目!L26,クラス集計2回目!M26,クラス集計2回目!N26,クラス集計2回目!O26)","v":0},{"$f":"SUM(クラス集計2回目!H26,クラス集計2回目!I26,クラス集計2回目!J26,クラス集計2回目!K26)","v":0},{"$f":"SUM(クラス集計2回目!D26,クラス集計2回目!E26,クラス集計2回目!F26,クラス集計2回目!G26)","v":0}]
[24,{"$f":"IF(クラス集計1回目!B27=\"\",\"\",クラス集計1回目!B27)","v":""},{"$f":"IF(クラス集計1回目!C27=\"\",\"\",クラス集計1回目!C27)","v":""},null,null,null,null,null,null,null,null,null,null,null,null,null,null,null,null,null,null,null,null,0,null,{"$f":"SUM(クラス集計2回目!T27,クラス集計2回目!U27,クラス集計2回目!V27,クラス集計2回目!W27)","v":0},{"$f":"SUM(クラス集計2回目!P27,クラス集計2回目!Q27,クラス集計2回目!R27,クラス集計2回目!S27)","v":0},{"$f":"SUM(クラス集計2回目!L27,クラス集計2回目!M27,クラス集計2回目!N27,クラス集計2回目!O27)","v":0},{"$f":"SUM(クラス集計2回目!H27,クラス集計2回目!I27,クラス集計2回目!J27,クラス集計2回目!K27)","v":0},{"$f":"SUM(クラス集計2回目!D27,クラス集計2回目!E27,クラス集計2回目!F27,クラス集計2回目!G27)","v":0}]
[25,{"$f":"IF(クラス集計1回目!B28=\"\",\"\",クラス集計1回目!B28)","v":""},{"$f":"IF(クラス集計1回目!C28=\"\",\"\",クラス集計1回目!C28)","v":""},null,null,null,null,null,null,null,null,null,null,null,null,null,null,null,null,null,null,null,null,0,null,{"$f":"SUM(クラス集計2回目!T28,クラス集計2回目!U28,クラス集計2回目!V28,クラス集計2回目!W28)","v":0},{"$f":"SUM(クラス集計2回目!P28,クラス集計2回目!Q28,クラス集計2回目!R28,クラス集計2回目!S28)","v":0},{"$f":"SUM(クラス集計2回目!L28,クラス集計2回目!M28,クラス集計2回目!N28,クラス集計2回目!O28)","v":0},{"$f":"SUM(クラス集計2回目!H28,クラス集計2回目!I28,クラス集計2回目!J28,クラス集計2回目!K28)","v":0},{"$f":"SUM(クラス集計2回目!D28,クラス集計2回目!E28,クラス集計2回目!F28,クラス集計2回目!G28)","v":0}]
[26,{"$f":"IF(クラス集計1回目!B29=\"\",\"\",クラス集計1回目!B29)","v":""},{"$f":"IF(クラス集計1回目!C29=\"\",\"\",クラス集計1回目!C29)","v":""},null,null,null,null,null,null,null,null,null,null,null,null,null,null,null,null,null,null,null,null,0,null,{"$f":"SUM(クラス集計2回目!T29,クラス集計2回目!U29,クラス集計2回目!V29,クラス集計2回目!W29)","v":0},{"$f":"SUM(クラス集計2回目!P29,クラス集計2回目!Q29,クラス集計2回目!R29,クラス集計2回目!S29)","v":0},{"$f":"SUM(クラス集計2回目!L29,クラス集計2回目!M29,クラス集計2回目!N29,クラス集計2回目!O29)","v":0},{"$f":"SUM(クラス集計2回目!H29,クラス集計2回目!I29,クラス集計2回目!J29,クラス集計2回目!K29)","v":0},{"$f":"SUM(クラス集計2回目!D29,クラス集計2回目!E29,クラス集計2回目!F29,クラス集計2回目!G29)","v":0}]
[27,{"$f":"IF(クラス集計1回目!B30=\"\",\"\",クラス集計1回目!B30)","v":""},{"$f":"IF(クラス集計1回目!C30=\"\",\"\",クラス集計1回目!C30)","v":""},null,null,null,null,null,null,null,null,null,null,null,null,null,null,null,null,null,null,null,null,0,null,{"$f":"SUM(クラス集計2回目!T30,クラス集計2回目!U30,クラス集計2回目!V30,クラス集計2回目!W30)","v":0},{"$f":"SUM(クラス集計2回目!P30,クラス集計2回目!Q30,クラス集計2回目!R30,クラス集計2回目!S30)","v":0},{"$f":"SUM(クラス集計2回目!L30,クラス集計2回目!M30,クラス集計2回目!N30,クラス集計2回目!O30)","v":0},{"$f":"SUM(クラス集計2回目!H30,クラス集計2回目!I30,クラス集計2回目!J30,クラス集計2回目!K30)","v":0},{"$f":"SUM(クラス集計2回目!D30,クラス集計2回目!E30,クラス集計2回目!F30,クラス集計2回目!G30)","v":0}]
[28,{"$f":"IF(クラス集計1回目!B31=\"\",\"\",クラス集計1回目!B31)","v":""},{"$f":"IF(クラス集計1回目!C31=\"\",\"\",クラス集計1回目!C31)","v":""},null,null,null,null,null,null,null,null,null,null,null,null,null,null,null,null,null,null,null,null,0,null,{"$f":"SUM(クラス集計2回目!T31,クラス集計2回目!U31,クラス集計2回目!V31,クラス集計2回目!W31)","v":0},{"$f":"SUM(クラス集計2回目!P31,クラス集計2回目!Q31,クラス集計2回目!R31,クラス集計2回目!S31)","v":0},{"$f":"SUM(クラス集計2回目!L31,クラス集計2回目!M31,クラス集計2回目!N31,クラス集計2回目!O31)","v":0},{"$f":"SUM(クラス集計2回目!H31,クラス集計2回目!I31,クラス集計2回目!J31,クラス集計2回目!K31)","v":0},{"$f":"SUM(クラス集計2回目!D31,クラス集計2回目!E31,クラス集計2回目!F31,クラス集計2回目!G31)","v":0}]
[29,{"$f":"IF(クラス集計1回目!B32=\"\",\"\",クラス集計1回目!B32)","v":""},{"$f":"IF(クラス集計1回目!C32=\"\",\"\",クラス集計1回目!C32)","v":""},null,null,null,null,null,null,null,null,null,null,null,null,null,null,null,null,null,null,null,null,0,null,{"$f":"SUM(クラス集計2回目!T32,クラス集計2回目!U32,クラス集計2回目!V32,クラス集計2回目!W32)","v":0},{"$f":"SUM(クラス集計2回目!P32,クラス集計2回目!Q32,クラス集計2回目!R32,クラス集計2回目!S32)","v":0},{"$f":"SUM(クラス集計2回目!L32,クラス集計2回目!M32,クラス集計2回目!N32,クラス集計2回目!O32)","v":0},{"$f":"SUM(クラス集計2回目!H32,クラス集計2回目!I32,クラス集計2回目!J32,クラス集計2回目!K32)","v":0},{"$f":"SUM(クラス集計2回目!D32,クラス集計2回目!E32,クラス集計2回目!F32,クラス集計2回目!G32)","v":0}]
[30,{"$f":"IF(クラス集計1回目!B33=\"\",\"\",クラス集計1回目!B33)","v":""},{"$f":"IF(クラス集計1回目!C33=\"\",\"\",クラス集計1回目!C33)","v":""},null,null,null,null,null,null,null,null,null,null,null,null,null,null,null,null,null,null,null,null,0,null,{"$f":"SUM(クラス集計2回目!T33,クラス集計2回目!U33,クラス集計2回目!V33,クラス集計2回目!W33)","v":0},{"$f":"SUM(クラス集計2回目!P33,クラス集計2回目!Q33,クラス集計2回目!R33,クラス集計2回目!S33)","v":0},{"$f":"SUM(クラス集計2回目!L33,クラス集計2回目!M33,クラス集計2回目!N33,クラス集計2回目!O33)","v":0},{"$f":"SUM(クラス集計2回目!H33,クラス集計2回目!I33,クラス集計2回目!J33,クラス集計2回目!K33)","v":0},{"$f":"SUM(クラス集計2回目!D33,クラス集計2回目!E33,クラス集計2回目!F33,クラス集計2回目!G33)","v":0}]
[31,{"$f":"IF(クラス集計1回目!B34=\"\",\"\",クラス集計1回目!B34)","v":""},{"$f":"IF(クラス集計1回目!C34=\"\",\"\",クラス集計1回目!C34)","v":""},null,null,null,null,null,null,null,null,null,null,null,null,null,null,null,null,null,null,null,null,0,null,{"$f":"SUM(クラス集計2回目!T34,クラス集計2回目!U34,クラス集計2回目!V34,クラス集計2回目!W34)","v":0},{"$f":"SUM(クラス集計2回目!P34,クラス集計2回目!Q34,クラス集計2回目!R34,クラス集計2回目!S34)","v":0},{"$f":"SUM(クラス集計2回目!L34,クラス集計2回目!M34,クラス集計2回目!N34,クラス集計2回目!O34)","v":0},{"$f":"SUM(クラス集計2回目!H34,クラス集計2回目!I34,クラス集計2回目!J34,クラス集計2回目!K34)","v":0},{"$f":"SUM(クラス集計2回目!D34,クラス集計2回目!E34,クラス集計2回目!F34,クラス集計2回目!G34)","v":0}]
[32,{"$f":"IF(クラス集計1回目!B35=\"\",\"\",クラス集計1回目!B35)","v":""},{"$f":"IF(クラス集計1回目!C35=\"\",\"\",クラス集計1回目!C35)","v":""},null,null,null,null,null,null,null,null,null,null,null,null,null,null,null,null,null,null,null,null,0,null,{"$f":"SUM(クラス集計2回目!T35,クラス集計2回目!U35,クラス集計2回目!V35,クラス集計2回目!W35)","v":0},{"$f":"SUM(クラス集計2回目!P35,クラス集計2回目!Q35,クラス集計2回目!R35,クラス集計2回目!S35)","v":0},{"$f":"SUM(クラス集計2回目!L35,クラス集計2回目!M35,クラス集計2回目!N35,クラス集計2回目!O35)","v":0},{"$f":"SUM(クラス集計2回目!H35,クラス集計2回目!I35,クラス集計2回目!J35,クラス集計2回目!K35)","v":0},{"$f":"SUM(クラス集計2回目!D35,クラス集計2回目!E35,クラス集計2回目!F35,クラス集計2回目!G35)","v":0}]
[33,{"$f":"IF(クラス集計1回目!B36=\"\",\"\",クラス集計1回目!B36)","v":""},{"$f":"IF(クラス集計1回目!C36=\"\",\"\",クラス集計1回目!C36)","v":""},null,null,null,null,null,null,null,null,null,null,null,null,null,null,null,null,null,null,null,null,0,null,{"$f":"SUM(クラス集計2回目!T36,クラス集計2回目!U36,クラス集計2回目!V36,クラス集計2回目!W36)","v":0},{"$f":"SUM(クラス集計2回目!P36,クラス集計2回目!Q36,クラス集計2回目!R36,クラス集計2回目!S36)","v":0},{"$f":"SUM(クラス集計2回目!L36,クラス集計2回目!M36,クラス集計2回目!N36,クラス集計2回目!O36)","v":0},{"$f":"SUM(クラス集計2回目!H36,クラス集計2回目!I36,クラス集計2回目!J36,クラス集計2回目!K36)","v":0},{"$f":"SUM(クラス集計2回目!D36,クラス集計2回目!E36,クラス集計2回目!F36,クラス集計2回目!G36)","v":0}]
[34,{"$f":"IF(クラス集計1回目!B37=\"\",\"\",クラス集計1回目!B37)","v":""},{"$f":"IF(クラス集計1回目!C37=\"\",\"\",クラス集計1回目!C37)","v":""},null,null,null,null,null,null,null,null,null,null,null,null,null,null,null,null,null,null,null,null,0,null,{"$f":"SUM(クラス集計2回目!T37,クラス集計2回目!U37,クラス集計2回目!V37,クラス集計2回目!W37)","v":0},{"$f":"SUM(クラス集計2回目!P37,クラス集計2回目!Q37,クラス集計2回目!R37,クラス集計2回目!S37)","v":0},{"$f":"SUM(クラス集計2回目!L37,クラス集計2回目!M37,クラス集計2回目!N37,クラス集計2回目!O37)","v":0},{"$f":"SUM(クラス集計2回目!H37,クラス集計2回目!I37,クラス集計2回目!J37,クラス集計2回目!K37)","v":0},{"$f":"SUM(クラス集計2回目!D37,クラス集計2回目!E37,クラス集計2回目!F37,クラス集計2回目!G37)","v":0}]
[35,{"$f":"IF(クラス集計1回目!B38=\"\",\"\",クラス集計1回目!B38)","v":""},{"$f":"IF(クラス集計1回目!C38=\"\",\"\",クラス集計1回目!C38)","v":""},null,null,null,null,null,null,null,null,null,null,null,null,null,null,null,null,null,null,null,null,0,null,{"$f":"SUM(クラス集計2回目!T38,クラス集計2回目!U38,クラス集計2回目!V38,クラス集計2回目!W38)","v":0},{"$f":"SUM(クラス集計2回目!P38,クラス集計2回目!Q38,クラス集計2回目!R38,クラス集計2回目!S38)","v":0},{"$f":"SUM(クラス集計2回目!L38,クラス集計2回目!M38,クラス集計2回目!N38,クラス集計2回目!O38)","v":0},{"$f":"SUM(クラス集計2回目!H38,クラス集計2回目!I38,クラス集計2回目!J38,クラス集計2回目!K38)","v":0},{"$f":"SUM(クラス集計2回目!D38,クラス集計2回目!E38,クラス集計2回目!F38,クラス集計2回目!G38)","v":0}]
[36,{"$f":"IF(クラス集計1回目!B39=\"\",\"\",クラス集計1回目!B39)","v":""},{"$f":"IF(クラス集計1回目!C39=\"\",\"\",クラス集計1回目!C39)","v":""},null,null,null,null,null,null,null,null,null,null,null,null,null,null,null,null,null,null,null,null,0,null,{"$f":"SUM(クラス集計2回目!T39,クラス集計2回目!U39,クラス集計2回目!V39,クラス集計2回目!W39)","v":0},{"$f":"SUM(クラス集計2回目!P39,クラス集計2回目!Q39,クラス集計2回目!R39,クラス集計2回目!S39)","v":0},{"$f":"SUM(クラス集計2回目!L39,クラス集計2回目!M39,クラス集計2回目!N39,クラス集計2回目!O39)","v":0},{"$f":"SUM(クラス集計2回目!H39,クラス集計2回目!I39,クラス集計2回目!J39,クラス集計2回目!K39)","v":0},{"$f":"SUM(クラス集計2回目!D39,クラス集計2回目!E39,クラス集計2回目!F39,クラス集計2回目!G39)","v":0}]
[37,{"$f":"IF(クラス集計1回目!B40=\"\",\"\",クラス集計1回目!B40)","v":""},{"$f":"IF(クラス集計1回目!C40=\"\",\"\",クラス集計1回目!C40)","v":""},null,null,null,null,null,null,null,null,null,null,null,null,null,null,null,null,null,null,null,null,0,null,{"$f":"SUM(クラス集計2回目!T40,クラス集計2回目!U40,クラス集計2回目!V40,クラス集計2回目!W40)","v":0},{"$f":"SUM(クラス集計2回目!P40,クラス集計2回目!Q40,クラス集計2回目!R40,クラス集計2回目!S40)","v":0},{"$f":"SUM(クラス集計2回目!L40,クラス集計2回目!M40,クラス集計2回目!N40,クラス集計2回目!O40)","v":0},{"$f":"SUM(クラス集計2回目!H40,クラス集計2回目!I40,クラス集計2回目!J40,クラス集計2回目!K40)","v":0},{"$f":"SUM(クラス集計2回目!D40,クラス集計2回目!E40,クラス集計2回目!F40,クラス集計2回目!G40)","v":0}]
[38,{"$f":"IF(クラス集計1回目!B41=\"\",\"\",クラス集計1回目!B41)","v":""},{"$f":"IF(クラス集計1回目!C41=\"\",\"\",クラス集計1回目!C41)","v":""},null,null,null,null,null,null,null,null,null,null,null,null,null,null,null,null,null,null,null,null,0,null,{"$f":"SUM(クラス集計2回目!T41,クラス集計2回目!U41,クラス集計2回目!V41,クラス集計2回目!W41)","v":0},{"$f":"SUM(クラス集計2回目!P41,クラス集計2回目!Q41,クラス集計2回目!R41,クラス集計2回目!S41)","v":0},{"$f":"SUM(クラス集計2回目!L41,クラス集計2回目!M41,クラス集計2回目!N41,クラス集計2回目!O41)","v":0},{"$f":"SUM(クラス集計2回目!H41,クラス集計2回目!I41,クラス集計2回目!J41,クラス集計2回目!K41)","v":0},{"$f":"SUM(クラス集計2回目!D41,クラス集計2回目!E41,クラス集計2回目!F41,クラス集計2回目!G41)","v":0}]
[39,{"$f":"IF(クラス集計1回目!B42=\"\",\"\",クラス集計1回目!B42)","v":""},{"$f":"IF(クラス集計1回目!C42=\"\",\"\",クラス集計1回目!C42)","v":""},null,null,null,null,null,null,null,null,null,null,null,null,null,null,null,null,null,null,null,null,0,null,{"$f":"SUM(クラス集計2回目!T42,クラス集計2回目!U42,クラス集計2回目!V42,クラス集計2回目!W42)","v":0},{"$f":"SUM(クラス集計2回目!P42,クラス集計2回目!Q42,クラス集計2回目!R42,クラス集計2回目!S42)","v":0},{"$f":"SUM(クラス集計2回目!L42,クラス集計2回目!M42,クラス集計2回目!N42,クラス集計2回目!O42)","v":0},{"$f":"SUM(クラス集計2回目!H42,クラス集計2回目!I42,クラス集計2回目!J42,クラス集計2回目!K42)","v":0},{"$f":"SUM(クラス集計2回目!D42,クラス集計2回目!E42,クラス集計2回目!F42,クラス集計2回目!G42)","v":0}]
[40,{"$f":"IF(クラス集計1回目!B43=\"\",\"\",クラス集計1回目!B43)","v":""},{"$f":"IF(クラス集計1回目!C43=\"\",\"\",クラス集計1回目!C43)","v":""},null,null,null,null,null,null,null,null,null,null,null,null,null,null,null,null,null,null,null,null,0,null,{"$f":"SUM(クラス集計2回目!T43,クラス集計2回目!U43,クラス集計2回目!V43,クラス集計2回目!W43)","v":0},{"$f":"SUM(クラス集計2回目!P43,クラス集計2回目!Q43,クラス集計2回目!R43,クラス集計2回目!S43)","v":0},{"$f":"SUM(クラス集計2回目!L43,クラス集計2回目!M43,クラス集計2回目!N43,クラス集計2回目!O43)","v":0},{"$f":"SUM(クラス集計2回目!H43,クラス集計2回目!I43,クラス集計2回目!J43,クラス集計2回目!K43)","v":0},{"$f":"SUM(クラス集計2回目!D43,クラス集計2回目!E43,クラス集計2回目!F43,クラス集計2回目!G43)","v":0}]
[41,{"$f":"IF(クラス集計1回目!B44=\"\",\"\",クラス集計1回目!B44)","v":""},{"$f":"IF(クラス集計1回目!C44=\"\",\"\",クラス集計1回目!C44)","v":""},null,null,null,null,null,null,null,null,null,null,null,null,null,null,null,null,null,null,null,null,0,null,{"$f":"SUM(クラス集計2回目!T44,クラス集計2回目!U44,クラス集計2回目!V44,クラス集計2回目!W44)","v":0},{"$f":"SUM(クラス集計2回目!P44,クラス集計2回目!Q44,クラス集計2回目!R44,クラス集計2回目!S44)","v":0},{"$f":"SUM(クラス集計2回目!L44,クラス集計2回目!M44,クラス集計2回目!N44,クラス集計2回目!O44)","v":0},{"$f":"SUM(クラス集計2回目!H44,クラス集計2回目!I44,クラス集計2回目!J44,クラス集計2回目!K44)","v":0},{"$f":"SUM(クラス集計2回目!D44,クラス集計2回目!E44,クラス集計2回目!F44,クラス集計2回目!G44)","v":0}]
[42,{"$f":"IF(クラス集計1回目!B45=\"\",\"\",クラス集計1回目!B45)","v":""},{"$f":"IF(クラス集計1回目!C45=\"\",\"\",クラス集計1回目!C45)","v":""},null,null,null,null,null,null,null,null,null,null,null,null,null,null,null,null,null,null,null,null,0,null,{"$f":"SUM(クラス集計2回目!T45,クラス集計2回目!U45,クラス集計2回目!V45,クラス集計2回目!W45)","v":0},{"$f":"SUM(クラス集計2回目!P45,クラス集計2回目!Q45,クラス集計2回目!R45,クラス集計2回目!S45)","v":0},{"$f":"SUM(クラス集計2回目!L45,クラス集計2回目!M45,クラス集計2回目!N45,クラス集計2回目!O45)","v":0},{"$f":"SUM(クラス集計2回目!H45,クラス集計2回目!I45,クラス集計2回目!J45,クラス集計2回目!K45)","v":0},{"$f":"SUM(クラス集計2回目!D45,クラス集計2回目!E45,クラス集計2回目!F45,クラス集計2回目!G45)","v":0}]
[43,{"$f":"IF(クラス集計1回目!B46=\"\",\"\",クラス集計1回目!B46)","v":""},{"$f":"IF(クラス集計1回目!C46=\"\",\"\",クラス集計1回目!C46)","v":""},null,null,null,null,null,null,null,null,null,null,null,null,null,null,null,null,null,null,null,null,0,null,{"$f":"SUM(クラス集計2回目!T46,クラス集計2回目!U46,クラス集計2回目!V46,クラス集計2回目!W46)","v":0},{"$f":"SUM(クラス集計2回目!P46,クラス集計2回目!Q46,クラス集計2回目!R46,クラス集計2回目!S46)","v":0},{"$f":"SUM(クラス集計2回目!L46,クラス集計2回目!M46,クラス集計2回目!N46,クラス集計2回目!O46)","v":0},{"$f":"SUM(クラス集計2回目!H46,クラス集計2回目!I46,クラス集計2回目!J46,クラス集計2回目!K46)","v":0},{"$f":"SUM(クラス集計2回目!D46,クラス集計2回目!E46,クラス集計2回目!F46,クラス集計2回目!G46)","v":0}]
[44,{"$f":"IF(クラス集計1回目!B47=\"\",\"\",クラス集計1回目!B47)","v":""},{"$f":"IF(クラス集計1回目!C47=\"\",\"\",クラス集計1回目!C47)","v":""},null,null,null,null,null,null,null,null,null,null,null,null,null,null,null,null,null,null,null,null,0,null,{"$f":"SUM(クラス集計2回目!T47,クラス集計2回目!U47,クラス集計2回目!V47,クラス集計2回目!W47)","v":0},{"$f":"SUM(クラス集計2回目!P47,クラス集計2回目!Q47,クラス集計2回目!R47,クラス集計2回目!S47)","v":0},{"$f":"SUM(クラス集計2回目!L47,クラス集計2回目!M47,クラス集計2回目!N47,クラス集計2回目!O47)","v":0},{"$f":"SUM(クラス集計2回目!H47,クラス集計2回目!I47,クラス集計2回目!J47,クラス集計2回目!K47)","v":0},{"$f":"SUM(クラス集計2回目!D47,クラス集計2回目!E47,クラス集計2回目!F47,クラス集計2回目!G47)","v":0}]
[45,{"$f":"IF(クラス集計1回目!B48=\"\",\"\",クラス集計1回目!B48)","v":""},{"$f":"IF(クラス集計1回目!C48=\"\",\"\",クラス集計1回目!C48)","v":""},null,null,null,null,null,null,null,null,null,null,null,null,null,null,null,null,null,null,null,null,0,null,{"$f":"SUM(クラス集計2回目!T48,クラス集計2回目!U48,クラス集計2回目!V48,クラス集計2回目!W48)","v":0},{"$f":"SUM(クラス集計2回目!P48,クラス集計2回目!Q48,クラス集計2回目!R48,クラス集計2回目!S48)","v":0},{"$f":"SUM(クラス集計2回目!L48,クラス集計2回目!M48,クラス集計2回目!N48,クラス集計2回目!O48)","v":0},{"$f":"SUM(クラス集計2回目!H48,クラス集計2回目!I48,クラス集計2回目!J48,クラス集計2回目!K48)","v":0},{"$f":"SUM(クラス集計2回目!D48,クラス集計2回目!E48,クラス集計2回目!F48,クラス集計2回目!G48)","v":0}]
["合計",null,null,{"$f":"SUM(D4:D48)","v":0},{"$f":"SUM(E4:E48)","v":0},0,0,0,0,0,0,0,0,0,0,0,0,0,0,0,0,0,0,0,null,{"$f":"SUM(クラス集計2回目!T49,クラス集計2回目!U49,クラス集計2回目!V49,クラス集計2回目!W49)","v":0},{"$f":"SUM(クラス集計2回目!P49,クラス集計2回目!Q49,クラス集計2回目!R49,クラス集計2回目!S49)","v":0},{"$f":"SUM(クラス集計2回目!L49,クラス集計2回目!M49,クラス集計2回目!N49,クラス集計2回目!O49)","v":0},{"$f":"SUM(クラス集計2回目!H49,クラス集計2回目!I49,クラス集計2回目!J49,クラス集計2回目!K49)","v":0},{"$f":"SUM(クラス集計2回目!D49,クラス集計2回目!E49,クラス集計2回目!F49,クラス集計2回目!G49)","v":0}]
[]
[]
[null,"※オレンジ色が付いているところだけ入力してください。"]
[null,"１．　名前と性別を入力して下さい。"]
[null,"２．　解答欄には、正解の所に「１」を入力して下さい。"]
[null,"３．　クラス集計に入力し、個票で各個人のレーダーチャートを印刷してください。"]
[null,"４．　レーダーチャートを見て、各領域での「強み」「弱み」を、今後の指導に活用下さい。"]
[]
[]
[null,"領域","合計値"]
[null,"情報モラル",{"$f":"Z49","v":0}]
[null,"参画する態度",{"$f":"AA49","v":0}]
[null,"情報技術",{"$f":"AB49","v":0}]
[null,"法律",{"$f":"AC49","v":0}]
[null,"機器の利用",{"$f":"AD49","v":0}]

{"sheet":"個票","index":2,"n_rows":40,"n_cols":13,"rows_kept":40,"cut":false,"hidden":false,"merged":[[1,3,1,4],[31,3,31,4],[5,8,7,10],[10,8,10,10],[14,8,16,10]]}
[]
[null,{"$f":"VLOOKUP($I$3,クラス集計1回目!$A$4:$AD$48,1,0)","v":1},"番　名前",{"$f":"VLOOKUP($I$3,クラス集計1回目!$A$4:$AD$48,2,0)","v":0},null,{"$f":"VLOOKUP($I$3,クラス集計1回目!$A$4:$AD$48,3,0)","v":0},null,null,"単票印刷用"]
[null,null,null,null,null,null,null,null,1]
[null,"第1回目領域"]
[null,"情報モラル","参画する態度","情報技術","法律","機器の利用",null,null,"※出席番号の入力"]
[null,{"$f":"VLOOKUP($I$3,クラス集計1回目!$A$4:$AD$48,26,0)","v":0},{"$f":"VLOOKUP($I$3,クラス集計1回目!$A$4:$AD$48,27,0)","v":0},{"$f":"VLOOKUP($I$3,クラス集計1回目!$A$4:$AD$48,28,0)","v":0},{"$f":"VLOOKUP($I$3,クラス集計1回目!$A$4:$AD$48,29,0)","v":0},{"$f":"VLOOKUP($I$3,クラス集計1回目!$A$4:$AD$48,30,0)","v":0},null,null,"シート１枚に２名分印刷されるので奇数を打ち込み印刷してください。"]
[]
[null,"第2回目領域"]
[null,"情報モラル","参画する態度","情報技術","法律","機器の利用"]
[null,{"$f":"VLOOKUP($I$3,クラス集計2回目!$A$4:$AD$43,26,0)","v":0},{"$f":"VLOOKUP($I$3,クラス集計2回目!$A$4:$AD$43,27,0)","v":0},{"$f":"VLOOKUP($I$3,クラス集計2回目!$A$4:$AD$43,28,0)","v":0},{"$f":"VLOOKUP($I$3,クラス集計2回目!$A$4:$AD$43,29,0)","v":0},{"$f":"VLOOKUP($I$3,クラス集計2回目!$A$4:$AD$43,30,0)","v":0}]
[null,null,null,null,null,null,null,null,"連続印刷用"]
[null,null,null,null,null,null,null,null,null,"～",null,null,2]
[null,null,null,null,null,null,null,null,null,null,null,null,{"$f":"I3+M12","v":3}]
[null,null,null,null,null,null,null,null,"※出席番号の入力"]
[null,null,null,null,null,null,null,null,"印刷したい範囲の出席番号を上に入力して、下の印刷ボタンを押してください。"]
[]
[]
[]
[]
[]
[]
[]
[]
[]
[]
[]
[]
[]
[]
[]
[]
[null,{"$f":"VLOOKUP($I$3+1,クラス集計1回目!$A$4:$AD$48,1,0)","v":2},"番　名前",{"$f":"VLOOKUP($I$3+1,クラス集計1回目!$A$4:$AD$48,2,0)","v":0},null,{"$f":"VLOOKUP($I$3+1,クラス集計1回目!$A$4:$AD$48,3,0)","v":0}]
[]
[null,"第1回目領域"]
[null,"情報モラル","参画する態度","情報技術","法律","機器の利用"]
[null,{"$f":"VLOOKUP($I$3+1,クラス集計1回目!$A$4:$AD$48,26,0)","v":0},{"$f":"VLOOKUP($I$3+1,クラス集計1回目!$A$4:$AD$48,27,0)","v":0},{"$f":"VLOOKUP($I$3+1,クラス集計1回目!$A$4:$AD$48,28,0)","v":0},{"$f":"VLOOKUP($I$3+1,クラス集計1回目!$A$4:$AD$48,29,0)","v":0},{"$f":"VLOOKUP($I$3+1,クラス集計1回目!$A$4:$AD$48,30,0)","v":0}]
[]
[null,"第2回目領域"]
[null,"情報モラル","参画する態度","情報技術","法律","機器の利用"]
[null,{"$f":"VLOOKUP($I$3+1,クラス集計2回目!$A$4:$AD$43,26,0)","v":0},{"$f":"VLOOKUP($I$3+1,クラス集計2回目!$A$4:$AD$43,27,0)","v":0},{"$f":"VLOOKUP($I$3+1,クラス集計2回目!$A$4:$AD$43,28,0)","v":0},{"$f":"VLOOKUP($I$3+1,クラス集計2回目!$A$4:$AD$43,29,0)","v":0},{"$f":"VLOOKUP($I$3+1,クラス集計2回目!$A$4:$AD$43,30,0)","v":0}]

{"sheet":"Sheet3","index":3,"n_rows":0,"n_cols":0,"rows_kept":0,"cut":false,"hidden":true,"merged":[]}